Cogmind - Beta 12 X1 @@@ ROGUE MODE // 2022.07.04 @ 06:56:40 Player: LU-1G1 Result: Self-destructed Performance ------------- Evolutions (4) 2000 Regions Visited (13) 2600 Robots Destroyed (73) 365 Value Destroyed (1479) 1479 Prototype IDs (26) 520 Alien Tech Used (0) 0 Bonus (300) 300 TOTAL SCORE: 7264 Bonus ------- Aligned with FarCom 300 Cogmind --------- Core Integrity 850/850 Matter 282/300 Energy 480/480 System Corruption 38% Temperature Cool (0) Movement Hovering (66) Location -6/Lower Caves Parts ------- > --- POWER (2) -------- Improved Deuterium Engine Improved Deuterium Engine > --- PROPULSION (5) --- Improved Gravmag System Combat Airjet Makeshift Flight Unit Cooled Cesium-ion Thruster > --- UTILITY (6) ------ Lightpack 2.0 Weight Redist. System > --- WEAPON (2) ------- (None) > --- INVENTORY (40) --- Structural Scanner Advanced Visual Processing Unit Advanced Signal Interpreter Advanced Terrain Scan Processor Seismic Detector Matter Filter Improved Weapon Shielding Improved Weapon Shielding Improved Weapon Shielding Light Armor Plating Light Armor Plating Light Armor Plating Hardened Medium Armor Plating Hardened Medium Armor Plating Improved Light Armor Plating Improved Medium Armor Plating Improved Medium Armor Plating Relay Coupler [Programmer] (61) Relay Coupler [Programmer] (88) Relay Coupler [Programmer] (75) Relay Coupler [Programmer] (53) Relay Coupler [Programmer] (71) Heavy Particle Cannon Assault Rifle Heavy Rocket Launcher Heavy Rocket Launcher Heavy Rocket Launcher RU-N14's Throwing Claymores (10) RU-N14's Throwing Claymores (10) RU-N14's Throwing Claymores (10) RU-N14's Throwing Claymores (10) Powered Hammer Powered Hammer Powered Hammer Peak State ------------ > --- POWER ------------ Improved Deuterium Engine Improved Deuterium Engine > --- PROPULSION ------- Flight Unit Flight Unit Makeshift Flight Unit Nuclear Pulse Thruster Cooled Cesium-ion Thruster > --- UTILITY ---------- Lightpack 2.0 Structural Scanner Enhanced Optical Array Improved System Shield > --- WEAPON ----------- CR-A16's Pointy Stick > --- INVENTORY -------- Improved Gravmag System Combat Airjet Weight Redist. System Advanced Visual Processing Unit Advanced Terrain Scan Processor Seismic Detector Matter Filter Improved Weapon Shielding Improved Weapon Shielding Improved Weapon Shielding Light Armor Plating Light Armor Plating Light Armor Plating Hardened Medium Armor Plating Hardened Medium Armor Plating Improved Light Armor Plating Improved Medium Armor Plating Improved Medium Armor Plating Relay Coupler [Programmer] Relay Coupler [Programmer] Relay Coupler [Programmer] Relay Coupler [Programmer] Relay Coupler [Programmer] Heavy Particle Cannon Assault Rifle Heavy Rocket Launcher Heavy Rocket Launcher Heavy Rocket Launcher RU-N14's Throwing Claymores RU-N14's Throwing Claymores RU-N14's Throwing Claymores RU-N14's Throwing Claymores Powered Hammer Powered Hammer Powered Hammer [Rating: 84] Favorites ----------- Power Ion Engine Engine Ion Engine Power Core Micro Nuclear Core Propulsion Light Treads Treads Light Treads Hover Unit Improved Gravmag System Flight Unit Cesium-ion Thruster Utility Structural Scanner Device Structural Scanner Storage Large Storage Unit Processor Enhanced Optical Array Hackware Improved System Shield Protection Light Armor Plating Weapon Shotgun Energy Gun Medium Laser Ballistic Gun Shotgun Launcher Heavy Rocket Launcher Special Weapon RU-N14's Throwing Claymores Slashing Weapon Katana Piercing Weapon CR-A16's Pointy Stick Build | -11 -10 -10 -10 -9 -8 -7 -7 -7 -7 -6 -6 -6 -6 ------- Run | Scr Mat Min Exi Min Mat Fac Low Low Zio Pro Fac Low Low Slots Evolved 8 | . . . . . 4 2 . . . . 2 . . Power 1 | . . . . . . . . . . . 1 . . Propulsion 3 | . . . . . 1 1 . . . . 1 . . Utility 4 | . . . . . 3 1 . . . . . . . Weapon . | . . . . . . . . . . . . . . Parts Attached 86 | 6 9 2 1 2 25 8 3 3 5 11 7 . 4 Power 9 | 1 1 . . . 2 1 1 . . 1 1 . 1 Engine 8 | 1 1 . . . 2 1 . . . 1 1 . 1 Core 1 | . . . . . . . 1 . . . . . . Reactor . | . . . . . . . . . . . . . . Propulsion 32 | 2 2 . . 1 12 2 1 2 . 5 3 . 2 Treads 13 | 2 2 . . 1 8 . . . . . . . . Leg . | . . . . . . . . . . . . . . Wheel . | . . . . . . . . . . . . . . Hover 3 | . . . . . . . . . . . 1 . 2 Flight 16 | . . . . . 4 2 1 2 . 5 2 . . Utility 27 | 1 2 2 1 . 9 4 1 1 2 1 2 . 1 Device 9 | . 1 1 . . 2 1 1 . . 1 1 . 1 Storage 5 | 1 1 1 1 . 1 . . . . . . . . Processor 4 | . . . . . . 3 . 1 . . . . . Hackware 2 | . . . . . 1 . . . . . 1 . . Protection 7 | . . . . . 5 . . . 2 . . . . Artifact . | . . . . . . . . . . . . . . Weapon 18 | 2 4 . . 1 2 1 . . 3 4 1 . . Energy Gun 1 | 1 . . . . . . . . . . . . . Energy Cannon . | . . . . . . . . . . . . . . Ballistic Gun 7 | 1 4 . . 1 1 . . . . . . . . Ballistic Cannon . | . . . . . . . . . . . . . . Launcher 1 | . . . . . . . . . . 1 . . . Special Weapon 1 | . . . . . . . . . . . 1 . . Impact Weapon . | . . . . . . . . . . . . . . Slashing Weapon 7 | . . . . . 1 1 . . 2 3 . . . Piercing Weapon 1 | . . . . . . . . . 1 . . . . Special Melee Weapon . | . . . . . . . . . . . . . . Unidentified Prototypes 3 | . . . . . 1 . . . . . 2 . . Parts Lost 19 | . . . . . 1 1 1 . . 6 4 . 6 Power 1 | . . . . . . . . . . 1 . . . Propulsion 11 | . . . . . 1 . 1 . . 5 1 . 3 Utility 5 | . . . . . . 1 . . . . 2 . 2 Weapon 2 | . . . . . . . . . . . 1 . 1 Highest Loss Streak 6 | . . . . . 1 1 1 . . 4 3 . 6 To Critical Strikes . | . . . . . . . . . . . . . . Average Slot Usage (%) 91 | . 97 100 100 100 84 80 84 84 84 79 69 66 76 Engine 10 | . 13 14 14 14 8 7 2 . . . 6 6 13 Treads 21 | . 27 28 28 28 22 . . . . . . . . Flight 6 | . . . . . 3 30 30 30 30 29 29 33 30 Device 12 | . 13 14 14 14 11 14 15 15 12 7 7 6 11 Storage 12 | . 14 14 14 14 13 7 7 7 7 7 6 6 6 Processor 1 | . . . . . . 5 7 7 7 7 6 6 5 Protection 1 | . . . . . 6 . . . 2 6 . . . Ballistic Gun 18 | . 23 28 28 28 16 . . . . . . . . Slashing Weapon 1 | . . . . . 1 13 15 15 14 6 1 . . Naked Turns . | . . . . . . . . . . . . . . Heaviest Build 45 | 14 22 32 32 33 45 21 21 17 20 21 21 19 29 Greatest Support 60 | 40 40 40 40 40 60 25 25 26 20 26 35 28 34 Greatest Overweight (x) . | . . . . . . . . . . . . . . Average Overweight (x) . | . . . . . . . . . . . . . . Largest Inventory Capacity 40 | 8 10 15 15 15 40 40 40 40 40 40 40 40 40 Average Capacity 21 | 7 8 14 15 15 29 40 40 40 40 40 40 40 40 Most Carried 40 | 7 10 15 15 15 40 38 36 36 40 40 38 38 37 Average Carried 19 | 4 8 12 14 14 26 36 35 35 38 36 34 38 35 Final Capacity 40 | 8 10 15 15 15 40 40 40 40 40 40 40 40 40 Final Carried 39 | 7 10 15 15 15 39 36 35 36 39 33 38 38 34 Class Distribution -------------------- 65% | Mutant 14% | Hauler-Sprinter 9% | Hauler-Mutant 7% | Hauler-Scout 3% | Scavenger-Mutant Dominant Class ---------------- Mutant | -10/Materials Mutant | -10/Mines Mutant | -10/Exiles Mutant | -9/Mines Hauler-Mutant | -8/Materials Hauler-Scout | -7/Factory Hauler-Sprinter | -7/Lower Caves Hauler-Sprinter | -7/Lower Caves Hauler-Sprinter | -7/Zion Hauler-Sprinter | -6/Proximity Caves Hauler-Scout | -6/Factory Hauler-Sprinter | -6/Lower Caves Hauler-Sprinter | -6/Lower Caves Resources | -11 -10 -10 -10 -9 -8 -7 -7 -7 -7 -6 -6 -6 -6 ----------- Run | Scr Mat Min Exi Min Mat Fac Low Low Zio Pro Fac Low Low Matter Collected 1944 | 260 311 239 . 41 682 83 51 5 35 40 197 . . Remotely . | . . . . . . . . . . . . . . Salvage Created 2423 | 201 516 318 . 41 967 100 41 . . 23 216 . . Parts 154 | 14 23 22 . . 67 3 4 . . 4 17 . . Haulers Intercepted 9 | . 2 . . . 4 2 . . . . 1 . . Recyclers Shooed 5 | . 2 . . . 3 . . . . . . . . Parts Field Recycled . | . . . . . . . . . . . . . . Retrieved Matter . | . . . . . . . . . . . . . . Parts Self-Destructed 6 | . . . . . . . 4 . . 2 . . . Prevented . | . . . . . . . . . . . . . . Kills | -11 -10 -10 -10 -9 -8 -7 -7 -7 -7 -6 -6 -6 -6 ------- Run | Scr Mat Min Exi Min Mat Fac Low Low Zio Pro Fac Low Low Combat Hostiles Destroyed 45 | . 8 10 . 4 18 . 1 . . 3 1 . . Melee 2 | . . . . . . . 1 . . . 1 . . Guns 40 | . 8 10 . 4 18 . . . . . . . . AOE 3 | . . . . . . . . . . 3 . . . Classes Destroyed 12 | 2 5 1 . 1 2 . 1 . . . . . . Worker 5 | . . . . . 4 . . . . . 1 . . Builder 3 | . 1 . . . 1 . . . . . 1 . . Tunneler 6 | 5 . 1 . . . . . . . . . . . Hauler 9 | . 2 . . . 4 2 . . . . 1 . . Recycler 4 | 1 1 . . . 2 . . . . . . . . Operator 1 | . . . . . 1 . . . . . . . . Watcher 4 | . 3 . . . 1 . . . . . . . . Swarmer 18 | . 3 6 . . 6 . . . . 3 . . . Grunt 13 | . 5 2 . . 6 . . . . . . . . Sentry 8 | . . 2 . . 6 . . . . . . . . Programmer 2 | . . . . . . . 1 . . . 1 . . Assembled 4 | . . . . 4 . . . . . . . . . Best Kill Streak 6 | 5 3 3 . 2 6 1 1 . . 3 2 . . Combat Bots Only 4 | . 3 3 . 2 4 . 1 . . 3 1 . . Max Kills in Single Turn 2 | 1 2 1 . 1 2 1 1 . . 1 1 . . Gunslinging 1 | . 1 . . . 1 . . . . . . . . Exploded 1 | . . . . . . . . . . 1 . . . Melee 1 | . . . . . . . 1 . . . 1 . . Uniques/NPCs Destroyed . | . . . . . . . . . . . . . . Combat | -11 -10 -10 -10 -9 -8 -7 -7 -7 -7 -6 -6 -6 -6 -------- Run | Scr Mat Min Exi Min Mat Fac Low Low Zio Pro Fac Low Low Damage Taken 2983 | . 269 254 . 66 858 . 233 68 . 532 216 37 450 Core 429 | . 66 45 . . 120 . 60 38 . 100 . . . Absorbed by Shields . | . . . . . . . . . . . . . . Regen/Repaired (Parts) 243 | . 226 . . . 17 . . . . . . . . Core Remaining (%) 76 | 100 . . . 55 78 . . . . 71 . . . Volleys Fired 132 | 12 38 20 . 7 51 . . . . 4 . . . Largest 2 | 2 2 2 . 2 2 . . . . 1 . . . Hottest 70 | 70 70 46 . 46 51 . . . . 39 . . . Shots Fired 255 | 20 76 40 . 14 101 . . . . 4 . . . Gun 251 | 20 76 40 . 14 101 . . . . . . . . Cannon . | . . . . . . . . . . . . . . Launcher 4 | . . . . . . . . . . 4 . . . Special . | . . . . . . . . . . . . . . Kinetic 230 | 8 67 40 . 14 101 . . . . . . . . Thermal 21 | 12 9 . . . . . . . . . . . . Explosive 4 | . . . . . . . . . . 4 . . . Electromagnetic . | . . . . . . . . . . . . . . Robot Hit Streak 10 | 6 10 5 . 7 10 . . . . 1 . . . Robot Miss Streak 8 | 3 8 4 . 5 4 . . . . 5 . . . Penetration Max . | . . . . . . . . . . . . . . Secondary Targets 5 | . 1 . . 1 3 . . . . . . . . Max Gunslinging Chain 1 | . 1 . . 1 1 . . . . . . . . Shots Hit Robots 217 | 11 58 27 . 9 88 13 6 . . 1 4 . . Core Hits 164 | 7 29 18 . 9 91 1 1 . . 5 3 . . Critical Kills 2 | . . 1 . . 1 . . . . . . . . Critical Parts Destroyed 1 | . 1 . . . . . . . . . . . . Critical Strikes 8 | 2 2 1 . . 2 . 1 . . . . . . Burn 3 | 2 1 . . . . . . . . . . . . Destroy 3 | . 1 1 . . 1 . . . . . . . . Sever 2 | . . . . . 1 . 1 . . . . . . Melee Attacks 109 | . . . . . 6 17 28 17 3 12 18 1 7 Impact . | . . . . . . . . . . . . . . Slashing 87 | . . . . . 6 17 28 17 3 12 4 . . Piercing 22 | . . . . . . . . . . . 14 1 7 Sneak Attacks 8 | . . . . . 1 4 . . . . 3 . . Combat Hostiles 2 | . . . . . . 2 . . . . . . . Follow-up Attacks . | . . . . . . . . . . . . . . Damage Inflicted 4733 | 139 816 405 . 141 1785 660 238 . . 257 292 . . Guns 3002 | 139 813 386 . 141 1523 . . . . . . . . Cannons . | . . . . . . . . . . . . . . Explosions 257 | . . . . . . . . . . 257 . . . Melee 1383 | . . . . . 193 660 238 . . . 292 . . Ramming 91 | . 3 19 . . 69 . . . . . . . . Kinetic 2823 | 39 734 386 . 141 1523 . . . . . . . . Thermal 179 | 100 79 . . . . . . . . . . . . Explosive 257 | . . . . . . . . . . 257 . . . Electromagnetic . | . . . . . . . . . . . . . . Impact . | . . . . . . . . . . . . . . Slashing 1091 | . . . . . 193 660 238 . . . . . . Piercing 292 | . . . . . . . . . . . 292 . . Highest Corruption 29 | . . . . . . . 4 4 4 5 15 15 29 Average Corruption 9 | . . . . . . . 3 4 4 5 14 15 16 Corruption Purged . | . . . . . . . . . . . . . . Corruption Blocked . | . . . . . . . . . . . . . . Effects 23 | . . . . . . . 2 2 1 1 12 3 2 Message Errors 8 | . . . . . . . . 1 1 . 4 2 . Matter Fused 3 | . . . . . . . 1 . . . 1 1 . Heat Flow Errors 2 | . . . . . . . . . . . 2 . . Energy Discharges 2 | . . . . . . . . . . . 2 . . Data Loss (minor) 4 | . . . . . . . 1 1 . 1 1 . . Data Loss (major) 1 | . . . . . . . . . . . . . 1 Alerts 1 | . . . . . . . . . . . . . 1 Misdirections 2 | . . . . . . . . . . . 2 . . Overload Shots . | . . . . . . . . . . . . . . Overflow Damage 181 | . . . . . 3 82 54 . . . 42 . . Projectiles . | . . . . . . . . . . . . . . Explosions . | . . . . . . . . . . . . . . Melee 181 | . . . . . 3 82 54 . . . 42 . . Knockbacks 1 | . . . . . 1 . . . . . . . . Impact 1 | . . . . . 1 . . . . . . . . Kinetic . | . . . . . . . . . . . . . . Secondary . | . . . . . . . . . . . . . . Self-Inflicted Damage . | . . . . . . . . . . . . . . Shots . | . . . . . . . . . . . . . . Rammed 10 | . 2 4 . . 4 . . . . . . . . Targets Rammed 12 | . 2 4 . . 6 . . . . . . . . Kicked . | . . . . . . . . . . . . . . Crushed 2 | . . . . . 2 . . . . . . . . Highest Temperature 218 | 36 24 33 . . 33 . . 2 . . 218 8 3 Average Temperature 27 | 14 14 19 . . 17 . . 2 . . 98 8 2 Received Heat Transfer 687 | . 114 117 . . 405 . . 18 . 12 9 12 . Siege Activations . | . . . . . . . . . . . . . . Robots Corrupted . | . . . . . . . . . . . . . . Combat Hostiles . | . . . . . . . . . . . . . . Parts Fried . | . . . . . . . . . . . . . . Impact Corruptions . | . . . . . . . . . . . . . . Robots Melted . | . . . . . . . . . . . . . . Combat Hostiles . | . . . . . . . . . . . . . . Parts Melted 4 | 3 1 . . . . . . . . . . . . Heat Transferred 740 | 444 296 . . . . . . . . . . . . Parts Sabotaged . | . . . . . . . . . . . . . . Parts Stolen . | . . . . . . . . . . . . . . Parts Stripped . | . . . . . . . . . . . . . . Power Chain Reactions . | . . . . . . . . . . . . . . Missiles Intercepted . | . . . . . . . . . . . . . . Alert | -11 -10 -10 -10 -9 -8 -7 -7 -7 -7 -6 -6 -6 -6 ------- Run | Scr Mat Min Exi Min Mat Fac Low Low Zio Pro Fac Low Low Peak Influence 379 | 30 170 235 . 15 379 188 . . . . 139 . . Initial 172 | . 19 . . . 1 172 . . . . 6 . . Average 86 | 10 43 87 . 5 162 182 . . . . 49 . . Maximum Alert Level 1 | . . 1 . . 1 . . . . . . . . Low Security (%) 83 | 100 100 78 . 100 58 100 . . . . 100 . . Level 1 16 | . . 21 . . 41 . . . . . . . . Level 2 . | . . . . . . . . . . . . . . Level 3 . | . . . . . . . . . . . . . . Level 4 . | . . . . . . . . . . . . . . Level 5 . | . . . . . . . . . . . . . . High Security . | . . . . . . . . . . . . . . Max Security . | . . . . . . . . . . . . . . Squads Dispatched 7 | . . . . . 1 2 . . . . 4 . . Investigation 5 | . . . . . . 2 . . . . 3 . . Extermination . | . . . . . . . . . . . . . . Reinforcement 2 | . . . . . 1 . . . . . 1 . . Assault . | . . . . . . . . . . . . . . Garrison . | . . . . . . . . . . . . . . Intercept . | . . . . . . . . . . . . . . Searches Triggered . | . . . . . . . . . . . . . . Construction Impeded . | . . . . . . . . . . . . . . Haulers Reinforced . | . . . . . . . . . . . . . . Active Scanning Responses . | . . . . . . . . . . . . . . Cargo Convoy Interrupts . | . . . . . . . . . . . . . . Stealth | -11 -10 -10 -10 -9 -8 -7 -7 -7 -7 -6 -6 -6 -6 --------- Run | Scr Mat Min Exi Min Mat Fac Low Low Zio Pro Fac Low Low Distress Signals 5 | . 1 . . . 3 . . . . . 1 . . Communications Jammed . | . . . . . . . . . . . . . . Distress Signals . | . . . . . . . . . . . . . . Times Spotted 103 | . 16 11 . 11 40 2 1 8 . 4 7 3 . Peak Tracking Total 11 | . 2 3 . 9 11 2 1 5 . 3 5 3 . Tactical Retreats 5 | . . 1 . . . . . 3 . . 1 . . Traps | -11 -10 -10 -10 -9 -8 -7 -7 -7 -7 -6 -6 -6 -6 ------- Run | Scr Mat Min Exi Min Mat Fac Low Low Zio Pro Fac Low Low Traps Triggered . | . . . . . . . . . . . . . . Indirectly . | . . . . . . . . . . . . . . Trap Hack Attempts . | . . . . . . . . . . . . . . Triggered . | . . . . . . . . . . . . . . Disarmed . | . . . . . . . . . . . . . . Reprogrammed . | . . . . . . . . . . . . . . Reused . | . . . . . . . . . . . . . . Traps Extracted . | . . . . . . . . . . . . . . Installed . | . . . . . . . . . . . . . . Triggered . | . . . . . . . . . . . . . . Machines | -11 -10 -10 -10 -9 -8 -7 -7 -7 -7 -6 -6 -6 -6 ---------- Run | Scr Mat Min Exi Min Mat Fac Low Low Zio Pro Fac Low Low Machines Disabled . | . . . . . . . . . . . . . . Max in Single Turn . | . . . . . . . . . . . . . . Garrison Access 1 | . . . . . . . . . . . 1 . . Machines Sabotaged . | . . . . . . . . . . . . . . Garrisons Compromised . | . . . . . . . . . . . . . . Overloaded Fab Kills . | . . . . . . . . . . . . . . Hacking | -11 -10 -10 -10 -9 -8 -7 -7 -7 -7 -6 -6 -6 -6 --------- Run | Scr Mat Min Exi Min Mat Fac Low Low Zio Pro Fac Low Low Machines Accessed 29 | . 9 . 2 1 6 3 . 1 . . 7 . . Terminals 18 | . 7 . . . 5 3 . . . . 3 . . Fabricators 2 | . . . . . . . . . . . 2 . . Repair Stations 3 | . 1 . . . 1 . . . . . 1 . . Recycling Units 1 | . 1 . . . . . . . . . . . . Scanalyzers . | . . . . . . . . . . . . . . Garrison Access 1 | . . . . . . . . . . . 1 . . Total Hacks 81 | . 36 . 2 1 17 5 . 1 . . 19 . . Successful 45 | . 24 . 2 1 8 1 . 1 . . 8 . . Failed 34 | . 11 . . . 8 4 . . . . 11 . . Catastrophic 7 | . 1 . . . 1 2 . . . . 3 . . Database Lockouts 2 | . 1 . . . 1 . . . . . . . . Manual 14 | . 5 . 1 . 4 1 . . . . 3 . . Terminals 45 | . 21 . . . 12 5 . . . . 7 . . Fabricators 6 | . . . . . . . . . . . 6 . . Repair Stations 22 | . 14 . . . 5 . . . . . 3 . . Recycling Units 1 | . 1 . . . . . . . . . . . . Scanalyzers . | . . . . . . . . . . . . . . Garrison Access 3 | . . . . . . . . . . . 3 . . Terminal Hacks 22 | . 10 . 2 1 5 1 . 1 . . 2 . . Record 1 | . . . 1 . . . . . . . . . . Robot Analysis 3 | . 2 . . . 1 . . . . . . . . Open Door 2 | . . . . 1 . . . 1 . . . . . Branch Access Points 3 | . 1 . . . 1 . . . . . 1 . . Terminal Index 2 | . 1 . . . . . . . . . 1 . . Alert Level 1 | . 1 . . . . . . . . . . . . Unreport Threat 1 | . 1 . . . . . . . . . . . . Security Status 1 | . . . . . 1 . . . . . . . . Recall Reinforcements 1 | . . . . . 1 . . . . . . . . Registered Components 1 | . 1 . . . . . . . . . . . . Zone Layout 5 | . 3 . . . 1 1 . . . . . . . EX-Prototype ID Bank 1 | . . . 1 . . . . . . . . . . Fabricator Hacks 3 | . . . . . . . . . . . 3 . . Network Status 1 | . . . . . . . . . . . 1 . . Load Schematic 1 | . . . . . . . . . . . 1 . . Build 1 | . . . . . . . . . . . 1 . . Repair Station Hacks 15 | . 12 . . . 3 . . . . . . . . Scan Component 7 | . 6 . . . 1 . . . . . . . . Repair 7 | . 6 . . . 1 . . . . . . . . Refit 1 | . . . . . 1 . . . . . . . . Recycling Unit Hacks 1 | . 1 . . . . . . . . . . . . Retrieve Components 1 | . 1 . . . . . . . . . . . . Scanalyzer . | . . . . . . . . . . . . . . Garrison Access Hacks 1 | . . . . . . . . . . . 1 . . Seal Access 1 | . . . . . . . . . . . 1 . . Unauthorized Hacks 3 | . 1 . . . . . . . . . 2 . . Terminals 1 | . 1 . . . . . . . . . . . . Assimilate 1 | . 1 . . . . . . . . . . . . Fabricators 2 | . . . . . . . . . . . 2 . . Liberate 1 | . . . . . . . . . . . 1 . . Haulers 1 | . . . . . . . . . . . 1 . . Repair Stations . | . . . . . . . . . . . . . . Recycling Units . | . . . . . . . . . . . . . . Scanalyzers . | . . . . . . . . . . . . . . Garrison Access . | . . . . . . . . . . . . . . Data Cores Recovered 1 | . . . . . 1 . . . . . . . . Used 1 | . . . . . 1 . . . . . . . . Hacking Detections 22 | . 7 . . . 5 3 . . . . 7 . . Full Trace Events 6 | . 1 . . . . 2 . . . . 3 . . Feedback Events 3 | . . . . . . 1 . . . . 2 . . Corruption 1 | . . . . . . . . . . . 1 . . Hackware Fried 2 | . . . . . . 1 . . . . 1 . . Feedback Blocked . | . . . . . . . . . . . . . . Robot Schematics Acquired 3 | . . . . . . . . . 3 . . . . Robots Built . | . . . . . . . . . . . . . . Authchips . | . . . . . . . . . . . . . . Time . | . . . . . . . . . . . . . . Total Robot Build Rating . | . . . . . . . . . . . . . . Part Schematics Acquired 16 | . . . . . . . . . 16 . . . . Parts Built . | . . . . . . . . . . . . . . Authchips . | . . . . . . . . . . . . . . Time 95 | . . . . . . . . . . . 95 . . Total Part Build Rating . | . . . . . . . . . . . . . . Parts Repaired 7 | . 6 . . . 1 . . . . . . . . Time 194 | . 168 . . . 26 . . . . . . . . Parts Recycled . | . . . . . . . . . . . . . . Recycled Matter . | . . . . . . . . . . . . . . Retrieved Matter . | . . . . . . . . . . . . . . Retrieved Components 4 | . 4 . . . . . . . . . . . . Parts Scanalyzed . | . . . . . . . . . . . . . . Part Schematics Acquired . | . . . . . . . . . . . . . . Parts Damaged . | . . . . . . . . . . . . . . Bothacking | -11 -10 -10 -10 -9 -8 -7 -7 -7 -7 -6 -6 -6 -6 ------------ Run | Scr Mat Min Exi Min Mat Fac Low Low Zio Pro Fac Low Low Used RIF Installer . | . . . . . . . . . . . . . . Robots Hacked . | . . . . . . . . . . . . . . Non-combat . | . . . . . . . . . . . . . . Combat . | . . . . . . . . . . . . . . Robot Hacks Applied . | . . . . . . . . . . . . . . Relay Couplers Released . | . . . . . . . . . . . . . . Fabnet Peak Effective % . | . . . . . . . . . . . . . . Robots Rewired . | . . . . . . . . . . . . . . Allies Hacked . | . . . . . . . . . . . . . . Hacks Repelled . | . . . . . . . . . . . . . . Allies | -11 -10 -10 -10 -9 -8 -7 -7 -7 -7 -6 -6 -6 -6 -------- Run | Scr Mat Min Exi Min Mat Fac Low Low Zio Pro Fac Low Low Total Allies 1 | . 1 . . . . . . . . . . . . Largest Group 1 | . 1 1 1 1 . . . . . . . . . Highest-Rated Group 10 | . 10 10 10 10 . . . . . . . . . Highest-Rated Ally 10 | . 10 10 10 10 . . . . . . . . . Total Orders . | . . . . . . . . . . . . . . Ally Attacks . | . . . . . . . . . . . . . . Total Damage . | . . . . . . . . . . . . . . Kills . | . . . . . . . . . . . . . . Allies Corrupted . | . . . . . . . . . . . . . . Allies Melted . | . . . . . . . . . . . . . . Intel | -11 -10 -10 -10 -9 -8 -7 -7 -7 -7 -6 -6 -6 -6 ------- Run | Scr Mat Min Exi Min Mat Fac Low Low Zio Pro Fac Low Low Robot Analysis Total 3 | . 2 . . . 1 . . . . . . . . Derelict Logs Recovered 4 | . . 1 . . . . . . 1 1 . 1 . Drone Launches . | . . . . . . . . . . . . . . Drone Recoveries . | . . . . . . . . . . . . . . Exploration | -11 -10 -10 -10 -9 -8 -7 -7 -7 -7 -6 -6 -6 -6 ------------- Run | Scr Mat Min Exi Min Mat Fac Low Low Zio Pro Fac Low Low Turns Passed 5643 | 152 1271 1139 529 301 1157 142 127 114 198 112 276 69 56 Spaces Moved 4860 | 67 590 664 329 168 636 253 219 247 637 164 566 218 102 Core 3 | 3 . . . . . . . . . . . . . Treads 2276 | 64 590 664 329 168 461 . . . . . . . . Legs . | . . . . . . . . . . . . . . Wheels . | . . . . . . . . . . . . . . Hover . | . . . . . . . . . . . . . . Flight 2581 | . . . . . 175 253 219 247 637 164 566 218 102 Fastest Speed 26 | 50 160 160 160 160 30 27 27 26 26 26 30 30 30 Average Speed 90 | 155 160 160 160 160 124 27 27 26 26 28 31 30 30 Slowest Speed 160 | 160 160 160 160 160 160 28 27 27 26 34 34 30 30 Overloaded Moves . | . . . . . . . . . . . . . . Propulsion Burnouts . | . . . . . . . . . . . . . . Robots Hopped . | . . . . . . . . . . . . . . Cave-ins Triggered 6 | . . . . . . . 1 1 . 1 1 . 2 Exploration Rate (%) 48 | 4 94 97 69 29 60 11 46 46 81 43 24 58 23 Regions Visited 13 Branch Regions 9 Pre-discovered Areas 4 | . . . 1 . . . . . 3 . . . . Known Exits Taken 4 | . 1 . . . . 1 . . . . 1 1 . Unknown Exits Taken 9 | 1 . 1 1 1 1 . 1 1 1 1 . . . Scrap Searched 9 | . . 1 . . . . 1 1 4 1 . 1 . Spaces Dug 60 | . . . . . 1 . 16 13 2 12 8 1 7 Terrain Destroyed 102 | . . . . . 1 . 16 13 2 54 8 1 7 Melee 60 | . . . . . 1 . 16 13 2 12 8 1 7 Projectile . | . . . . . . . . . . . . . . AOE 42 | . . . . . . . . . . 42 . . . Terrain Rammed . | . . . . . . . . . . . . . . Walls Destroyed . | . . . . . . . . . . . . . . Machines Disabled . | . . . . . . . . . . . . . . Actions | -11 -10 -10 -10 -9 -8 -7 -7 -7 -7 -6 -6 -6 -6 --------- Run | Scr Mat Min Exi Min Mat Fac Low Low Zio Pro Fac Low Low Total 5699 | 93 840 699 334 189 898 295 249 273 666 204 628 218 113 Wait 376 | . 187 2 . 6 105 16 2 11 . 14 33 . . Move 4845 | 66 589 663 328 167 635 252 217 246 636 163 565 217 101 Hop . | . . . . . . . . . . . . . . Pick Up 86 | 9 8 6 1 3 42 1 . . 12 . 4 . . Fast Attach 31 | 4 7 . . . 6 4 1 . 4 . 5 . . Attach 23 | 2 . . . 1 6 1 2 . . 6 1 . 4 Detach 12 | . . . . . 6 1 2 . . . 3 . . Swap 32 | . 2 2 1 1 13 3 . 3 1 5 1 . . Drop 49 | . 7 2 4 4 22 . . . 10 . . . . Fire 132 | 12 38 20 . 7 51 . . . . 4 . . . Melee 99 | . . . . . 6 17 24 13 3 12 16 1 7 Ram . | . . . . . . . . . . . . . . Kick . | . . . . . . . . . . . . . . Crush 12 | . 2 4 . . 6 . . . . . . . . Escape Stasis 2 | . . . . . . . 1 . . . . . 1 Rewire . | . . . . . . . . . . . . . . Trap . | . . . . . . . . . . . . . . Miscellaneous . | . . . . . . . . . . . . . . Route ------- -11/Scrapyard -10/Materials (discovered 4 exits: [*Mat x3] / *Min) -10/Mines (discovered 3 exits: [*Mat x2] / *Exi) -10/Exiles -9/Mines -8/Materials -7/Factory -7/Lower Caves -7/Lower Caves -7/Zion -6/Proximity Caves -6/Factory (discovered 2 exits: *Low x2) -6/Lower Caves -6/Lower Caves History --------- Turn | Location | Event 6 | -11/Scrapyard | Discovered new exit (range 15) 153 | -11/Scrapyard | Entered Materials 279 | -10/Materials | Discovered new exit (range 12) 300 | -10/Materials | Build established: Mutant 456 | -10/Materials | Central database locked down 477 | -10/Materials | Discovered new exit (range 15) 519 | -10/Materials | Discovered new exit (range 21) 710 | -10/Materials | Identified exit to Mines 939 | -10/Materials | Discovered new exit (range 10) 1018 | -10/Materials | Repaired Lgt. Treads 1045 | -10/Materials | Repaired Lgt. Treads 1073 | -10/Materials | Repaired Lgt. Treads 1161 | -10/Materials | Repaired Shotgun 1194 | -10/Materials | Repaired Shotgun 1222 | -10/Materials | Repaired Ion Engine 1424 | -10/Materials | Entered Mines 1424 | -10/Mines | Accompanied by 1 ally 1852 | -10/Mines | Discovered new exit (range 3) 1891 | -10/Mines | Discovered new exit (range 7) 1904 | -10/Mines | Deemed a non-threat by the Exiles lab entrance 1904 | -10/Mines | Discovered new exit (range 5) 2202 | -10/Mines | Learned Materials security intel 2563 | -10/Mines | Entered Exiles 2563 | -10/Exiles | Accompanied by 1 ally 2603 | -10/Exiles | Met 8R-AWN 2629 | -10/Exiles | Met EX-HEX 2704 | -10/Exiles | Met EX-DEC 2731 | -10/Exiles | Learned location of Zion (-7) 2864 | -10/Exiles | Met EX-BIN 2887 | -10/Exiles | Aligned with FarCom system 2888 | -10/Exiles | Given EX-Vault access code 2925 | -10/Exiles | Opened EX-Vault 2939 | -10/Exiles | Found Lightpack 2.0 2971 | -10/Exiles | Warned to stay clear of 0b10 Research branches 2992 | -10/Exiles | Exiles lab attacked by MAIN.C 3078 | -10/Exiles | Discovered new exit (range 11) 3092 | -10/Exiles | Left Exiles lab with Lightpack 2.0 3092 | -10/Exiles | Entered Mines 3092 | -9/Mines | Accompanied by 1 ally 3133 | -9/Mines | Assembled infested the area 3242 | -9/Mines | A weapon hastily lodged in a ceiling crevice suddenly fell to the ground 3282 | -9/Mines | Discovered new exit (range 13) 3342 | -9/Mines | Met a Derelict who couldn't figure out how to use a Trap Extractor 3393 | -9/Mines | Entered Materials 3393 | -8/Materials | Evolved 4 slots: Propulsion x1, Utility x3 4108 | -8/Materials | Central database locked down 4176 | -8/Materials | Build established: Hauler-Mutant 4503 | -8/Materials | Repaired Structural Scanner 4550 | -8/Materials | Discovered new exit (range 4) 4550 | -8/Materials | Entered Factory 4550 | -7/Factory | Evolved 2 slots: Propulsion x1, Utility x1 4561 | -7/Factory | Hacking Suite fried by hacking feedback 4666 | -7/Factory | Discovered new exit (range 18) 4692 | -7/Factory | Identified exit to Lower Caves 4692 | -7/Factory | Entered Lower Caves 4801 | -7/Lower Caves | Crushed by falling debris 4818 | -7/Lower Caves | Discovered new exit (range 4) 4819 | -7/Lower Caves | Entered another Lower Caves area 4890 | -7/Lower Caves | Crushed by falling debris 4922 | -7/Lower Caves | Encountered a Warlord checkpoint 4931 | -7/Lower Caves | Discovered new exit (range 9) 4933 | -7/Lower Caves | Entered Zion 4941 | -7/Zion | System corruption cleaned by Quarantine Array 4952 | -7/Zion | Learned location of Warlord (-5) 4964 | -7/Zion | Found Relay Coupler [Programmer] 4965 | -7/Zion | Found Relay Coupler [Programmer] 4967 | -7/Zion | Found Relay Coupler [Programmer] 4968 | -7/Zion | Found Relay Coupler [Programmer] 4969 | -7/Zion | Found Relay Coupler [Programmer] 4994 | -7/Zion | Build established: Hauler-Sprinter 5023 | -7/Zion | Learned location of Armory (-4) 5034 | -7/Zion | Found Prototype Special Weapon 5035 | -7/Zion | Found Prototype Special Weapon 5036 | -7/Zion | Found Prototype Special Weapon 5038 | -7/Zion | Found Prototype Special Weapon 5051 | -7/Zion | Given the Hacking Drone Bay 5091 | -7/Zion | Received a visual enhancement algorithm 5104 | -7/Zion | Discovered new exit (range 18) 5115 | -7/Zion | Found CR-A16's Pointy Stick 5131 | -7/Zion | Entered Proximity Caves 5184 | -6/Proximity Caves | Crushed by falling debris 5206 | -6/Proximity Caves | Spotted B-75 Beast 5215 | -6/Proximity Caves | Lost 4 parts (1p3n) 5238 | -6/Proximity Caves | Discovered new exit (range 15) 5243 | -6/Proximity Caves | Entered Factory 5243 | -6/Factory | Evolved 2 slots: Power x1, Propulsion x1 5309 | -6/Factory | Crushed by falling debris 5309 | -6/Factory | System corruption reached 10% 5313 | -6/Factory | Identified RU-N14's Throwing Claymores (x4) 5340 | -6/Factory | Lost 3 parts (1n1u1w) 5495 | -6/Factory | Identified exit to Lower Caves 5495 | -6/Factory | Imp. System Shield fried by hacking feedback 5519 | -6/Factory | Entered Lower Caves 5585 | -6/Lower Caves | Identified exit to Lower Caves 5588 | -6/Lower Caves | Entered another Lower Caves area 5639 | -6/Lower Caves | Crushed by falling debris 5644 | -6/Lower Caves | Crushed by falling debris 5644 | -6/Lower Caves | System corruption reached 30% 5644 | -6/Lower Caves | Self-destructed Last Messages --------------- 05590_ J0-WM5(k) breaks down the debris. 05593_ 9X-04S(k) breaks down the debris. 05598_ System corrupted: Substantial component data lost. 05629_ System corrupted: IFF burst signal emitted. 05639_ The unstable cave ceiling collapses. 05639_ Crushed by falling debris. 05639_ Enh. Optical Array destroyed. 05639_ System corrupted by crushing effect (+1). 05639_ Flight Unit destroyed. 05639_ System corrupted by crushing effect (+5). 05639_ Structural Scanner destroyed. 05639_ System corrupted by crushing effect (+3). 05639_ Flight Unit destroyed. 05639_ System corrupted by crushing effect (+5). 05644_ The unstable cave ceiling collapses. 05644_ Crushed by falling debris. 05644_ Nuclear Pulse Thruster destroyed. 05644_ System corrupted by crushing effect (+5). 05644_ CR-A16's Pointy Stick destroyed. 05644_ System corrupted by crushing effect (+4). Map ----- +----------------------------------------------------+ | ?????????????????????????????????????????????????? | | ?????????????????????????????????????????????????? | | ?????????????????????????????????????????????????? | | ?????????????????????????????????????????????????? | | ?????????????????????????????????????????????????? | | ????????????????????????## ??????????????????????? | | ???????????????????????### ????????????????????? | | ???????????????????????## ????????????????????? | | ??????????????????????? ????????????????????? | | ???????????????????????? ##??????????????????? | | ???????????????????????? ##??????????????????? | | ???????????????????????? ##??????????????????? | | ????????????????????????? #####???????????????? | | ????????????????????????? ######??????????????? | | ????????????????????????? ####?????????????? | | ????????????????????????? ###?????????????? | | ????????????????????????? ?????????????? | | ????????????????????????? ???????????????? | | ?????????????????????????? ????????????????? | | ?????????????????????????? ????????????????? | | ?????????????????????????? ????????????????? | | ?????????????????????????? ###???????????????? | | ?????????????????????????? ####??????????????? | | ???????????????????????### ######## ??####??? | | ???????????????????????#### ####### ###??? | | ???????????????????????##@# ##??? | | ???????????????????????#### ????? #??? | | ???????????????????????## # ##????????????????? | | ???????????????????????## # ##????????????????? | | ???????????????????????##"# ##????????????????? | | ??????????????????????#### ##????????????????? | | ?????????????????????#### ##????????????????? | | ????????????????????#### ###?????????????? ? | | ???????????????????#### ### ???????????? # | | ???????????????????### ### ??????????? # | | ???????????????????## ## ??????????? | | ???????????????????## # ?????????? | | ???????????????????### ###????????### | | ???????????????????##"# ## ####???????### | | ???????????????????"""# ### ####??????## | | ?????????????????? ""# #### ###??????## | | ???????????????##"" "###### ##????#### | | ??????????????? ## "###### ###???? ##?# | | ??????????????? ## "##??## ###???? ### | | ???????????????? "" ??##### ##??????? ## | | ???????????????? ? ##### ###???????? | | ??????????????? ### #######?????????? | | ?????????????## ###### ######???????????## | | ?????????????## ###### ###???????????????## | | ?????????????## ##??## ###???????????????## | +----------------------------------------------------+ Best States ------------- Heat Dissipation 37 Energy Generation 27 Energy Capacity 480 Matter Stores 300 Matter Capacity 300 Sight Range 22 Terrain Scan Density 10 Additional Mass Support 9 Armor Coverage 375 Evasion (%) 64 Recoil Reduction 3 Offensive Hacking 10 Defensive Hacking 12 Item Schematics ----------------- Beamcaster | -7/Zion | Archive Hrd. Heavy Armor Plating | -7/Zion | Archive Imp. Salvage Targeting Computer | -7/Zion | Archive Hvy. Machine Gun | -7/Zion | Archive Adv. Trap Extractor | -7/Zion | Archive Kinecellerator | -7/Zion | Archive Imp. Core Shielding | -7/Zion | Archive Mak. Power Source | -7/Zion | Archive Power Sword | -7/Zion | Archive Corruption Screen | -7/Zion | Archive Imp. Thermal Generator | -7/Zion | Archive Imp. Melee Analysis Suite | -7/Zion | Archive Matter Compressor | -7/Zion | Archive Mak. Hacking Suite | -7/Zion | Archive Adv. Plasma Cannon | -7/Zion | Archive Hvy. Mass Driver | -7/Zion | Archive Robot Schematics ------------------ A-02 Transporter | -7/Zion | Archive X-57 Shotgunner | -7/Zion | Archive S-27 Virus | -7/Zion | Archive Fabricated ------------ Nothing Alien Tech Used ----------------- None Achievements -------------- None Challenges ------------ None Game ------ Seed CoolantMinesnifferArchive Manual? 0 Play Time 00:48:44 Cumulative 519.1 hours Start 2022.07.04 @ 06:00:01 End 2022.07.04 @ 06:56:40 Sessions 1 Manual Loads 0 Difficulty Rogue Special Mode None Game No. 513 Rogue 298 Adventurer 112 Explorer 103 Win Type - Total 32 Types 23/0/6/2/0/0/0/1/0 Lore% 87 Gallery% 91 Achievement% 80 Wizard Run 0 Options --------- ASCII 0 Keyboard 1 Movement Vi Keybinds 1 Fullscreen 2 Font 18/TerminusBold Map View 76x50 Tactical HUD 1 Map Filters NONE Filters NONE Steam 1 RUN: 1ae5cdf2-138f-448f-9306-5be9c79b4f98